bitfinex-derivatives/quotes_ETHF0:USTF0_20241228
["timestamp","ask_amount","ask_price","bid_price","bid_amount"]
[1735352791920,0.46,3341.5,3341.1,0.29973]
[1735352792511,0.46,3341.5,3341.2,0.29972]
[1735352792915,0.7597,3341.5,3341.0,3.2078]
[1735352793220,0.7597,3341.5,3341.1,0.29973]
[1735352795721,0.46,3341.5,3341.2,0.29972]
[1735352795912,0.7597,3341.5,3341.1,0.29973]
[1735352796608,0.46,3341.5,3341.0,3.2078]
[1735352796812,0.46,3341.5,3341.2,0.29972]
[1735352797012,0.46,3341.5,3341.0,3.2078]
[1735352797215,0.46,3341.5,3341.4,0.29971]
[1735352798921,3.2078,3341.7,3341.6,0.29969]
[1735352799715,0.9154,3341.9,3341.6,0.29969]
[1735352800921,0.9154,3341.9,3341.1,3.13438667]
[1735352801116,0.9154,3341.9,3341.7,0.29968]
[1735352802525,0.9154,3341.9,3341.8,0.29967]
[1735352803622,0.4616,3341.9,3341.8,0.29967]
[1735352808432,3.6545,3342.1,3342.0,0.29965]
[1735352810226,0.4467,3342.1,3342.0,0.29965]
[1735352816124,0.4272,3342.2,3342.0,0.29965]
[1735352816336,0.4272,3342.2,3341.7,0.4447]
[1735352816337,0.4272,3342.2,3342.1,0.29964]
[1735352822634,0.4375,3342.4,3342.3,0.29962]
[1735352822941,0.4264,3342.5,3342.4,0.29962]
[1735352824234,0.4264,3342.5,3342.3,1.19572]
[1735352824428,0.72601,3342.5,3342.3,1.19572]
[1735352824634,0.4264,3342.5,3342.3,0.74002]
[1735352825540,0.4264,3342.5,3342.3,0.4404]
[1735352825741,0.4264,3342.5,3342.3,0.74002]
[1735352828041,0.4264,3342.5,3342.3,0.4404]
[1735352828240,0.4264,3342.5,3342.4,0.29962]
[1735352830146,3.96824801,3342.8,3342.6,0.2996]
[1735352830345,3.52654801,3342.8,3342.7,0.29959]
[1735352831148,3.2078,3343.0,3342.6,2.27418667]
[1735352831447,3.2078,3343.0,3342.9,0.29957]
[1735352833342,3.2078,3343.0,3342.8,0.4341]
[1735352833343,0.4704,3343.1,3343.0,0.29956]
[1735352835345,0.4261,3343.2,3342.9,2.27418667]
[1735352835546,0.4261,3343.2,3343.1,0.29955]
[1735352836049,3.97634801,3343.5,3343.4,0.29953]
[1735352836251,4.41814801,3343.5,3343.4,0.29953]
[1735352837450,0.8916,3343.5,3343.4,0.29953]
[1735352842152,0.8916,3343.5,3343.1,3.2078]
[1735352842352,0.29954,3343.3,3343.1,3.2078]
[1735352842857,0.4418,3343.5,3343.4,0.29953]
[1735352843663,0.4418,3343.5,3343.1,3.2078]
[1735352844155,0.29954,3343.2,3343.1,3.2078]
[1735352844456,3.661,3343.4,3342.7,5.14800743]
[1735352844656,0.4417,3343.1,3342.7,1.6418]
[1735352844857,0.29957,3342.9,3342.6,8.20260743]
[1735352845055,0.4268,3342.8,3342.6,8.20260743]
[1735352845361,0.88,3342.8,3342.6,7.90300743]
[1735352845656,0.88,3342.8,3342.6,8.20259743]
[1735352846159,0.88,3342.8,3342.6,3.50739]
[1735352847452,0.88,3342.8,3342.6,3.2078]
[1735352847655,0.88,3342.8,3342.7,0.29959]
[1735352850462,0.4417,3343.1,3342.6,3.2078]
[1735352850756,0.4417,3343.1,3343.0,0.29956]
[1735352855156,0.4417,3343.1,3342.8,2.27418667]
[1735352855358,0.4417,3343.1,3343.0,0.29956]
[1735352856357,0.4417,3343.1,3342.8,2.27418667]
[1735352856562,0.4417,3343.1,3342.6,3.2078]
[1735352856563,0.29959,3342.7,3342.6,3.2078]
[1735352857051,0.2996,3342.6,3342.4,1.189]
[1735352857254,0.8778,3342.5,3342.4,1.189]
[1735352857464,0.8778,3342.5,3342.3,3.28180743]
[1735352857663,0.29962,3342.4,3342.3,3.28180743]
[1735352857858,0.8778,3342.5,3342.2,3.2078]
[1735352858160,0.29962,3342.3,3342.2,3.2078]
[1735352859462,1.17741,3342.5,3342.2,3.50743]
[1735352859658,0.29962,3342.4,3342.2,3.2078]
[1735352859855,0.8778,3342.5,3342.2,3.50743]
[1735352860061,1.17741,3342.5,3342.2,3.50743]
[1735352860261,0.29962,3342.4,3342.2,3.50743]
[1735352860456,0.8778,3342.5,3342.2,3.2078]
[1735352860669,0.29962,3342.3,3342.2,3.2078]
[1735352862368,3.15198667,3342.5,3341.8,3.2078]
[1735352862562,0.29966,3342.0,3341.8,3.2078]
[1735352862865,0.9115,3341.9,3341.8,3.50747]
[1735352865265,0.9115,3341.9,3341.5,0.29969]
[1735352865667,0.4615,3341.8,3341.5,0.29969]
[1735352866071,0.76117,3341.8,3341.5,0.29969]
[1735352867375,0.29968,3341.7,3341.2,5.90918667]
[1735352867671,0.29968,3341.7,3341.3,0.29971]
[1735352868370,0.4615,3341.8,3341.2,5.90918667]
[1735352868572,0.29968,3341.7,3341.3,0.29971]
[1735352869372,0.29969,3341.6,3341.3,0.29971]
[1735352872371,0.29968,3341.7,3341.4,0.2997]
[1735352877373,0.4615,3341.8,3341.4,0.2997]
[1735352877575,0.76117,3341.8,3341.4,0.2997]
[1735352879176,0.76117,3341.8,3341.5,0.29969]
[1735352879676,0.4615,3341.8,3341.2,5.90918667]
[1735352879975,0.29968,3341.7,3341.4,0.2997]
[1735352880176,0.29971,3341.4,3341.2,3.2078]
[1735352880474,0.8689,3341.3,3341.2,3.2078]
[1735352880775,1.16861,3341.3,3341.2,3.2078]
[1735352881675,0.29972,3341.2,3340.8,0.29975]
[1735352881869,0.4659,3341.2,3341.0,0.29974]
[1735352882270,0.4659,3341.2,3341.1,0.29973]
[1735352884075,0.4659,3341.2,3341.0,0.29973]
[1735352884374,0.4659,3341.2,3341.1,0.29973]
[1735352885080,3.2078,3341.7,3340.9,0.927]
[1735352885269,0.9184,3341.6,3341.1,2.27418667]
[1735352885575,3.2078,3341.7,3341.5,0.2997]
[1735352885770,3.50748,3341.7,3341.6,0.4301]
[1735352885982,3.2078,3341.7,3341.6,0.4301]
[1735352886278,3.50748,3341.7,3341.6,0.4301]
[1735352886470,0.2997,3341.5,3341.2,0.29972]
[1735352886671,0.4517,3341.4,3341.2,0.29972]
[1735352886875,0.9184,3341.4,3341.2,0.29972]
[1735352887875,0.9184,3341.4,3341.3,0.29971]
[1735352888178,0.29969,3341.7,3341.3,0.29971]
[1735352888375,0.4446,3341.5,3341.3,0.29971]
[1735352890377,0.7443,3341.5,3341.2,0.29972]
[1735352890577,0.4446,3341.5,3341.1,3.6379]
[1735352890778,0.29971,3341.4,3341.1,3.93763]
[1735352891781,0.7443,3341.5,3341.2,0.29972]
[1735352900791,0.29971,3341.4,3341.1,0.72983]
[1735352902586,0.29972,3341.2,3341.1,0.4301]
[1735352903180,0.4446,3341.5,3341.1,0.4301]
[1735352903380,0.29972,3341.2,3341.1,0.4301]
[1735352903887,0.29972,3341.3,3341.1,0.4301]
[1735352904089,0.4387,3341.2,3341.0,0.29974]
[1735352904386,1.17192,3341.2,3341.0,0.29974]
[1735352904887,0.8722,3341.2,3341.0,0.29974]
[1735352905787,0.8722,3341.2,3341.0,1.37672807]
[1735352908291,0.8722,3341.2,3341.1,0.29973]
[1735352909089,0.8722,3341.2,3341.0,1.07698807]
[1735352909287,0.8722,3341.2,3341.1,0.29973]
[1735352913693,0.4335,3341.2,3341.1,0.29973]
[1735352914091,0.4335,3341.2,3341.1,12.92843932]
[1735352916890,3.52654801,3341.4,3341.3,0.29971]
[1735352917181,3.52654801,3341.4,3341.3,1.37669807]
[1735352917586,3.52654801,3341.5,3341.4,0.29971]
[1735352917788,3.52654801,3341.5,3341.4,0.75081]
[1735352918691,3.52654801,3341.7,3341.4,6.33670817]
[1735352919591,3.52654801,3341.7,3341.5,0.29969]
[1735352919791,3.52654801,3341.6,3341.5,0.29969]
[1735352919991,3.52654801,3341.6,3341.5,0.4684]
[1735352920497,3.52654801,3341.6,3341.5,0.7681]
[1735352921095,3.2078,3341.7,3341.6,0.29969]
[1735352921096,7.90997208,3341.7,3341.6,0.29969]
[1735352922098,7.90997208,3341.7,3341.5,0.76809]
[1735352926287,7.90997208,3341.7,3341.5,0.4684]
[1735352926491,7.90997208,3341.7,3341.5,0.76809]
[1735352926692,3.53682238,3341.6,3341.5,0.76809]
[1735352927303,3.53682238,3341.6,3341.5,0.4684]
[1735352929601,3.53682238,3341.6,3341.5,0.7681]
[1735352930003,3.53682238,3341.6,3341.5,0.4684]
[1735352932900,0.2997,3341.5,3341.4,7.07027715]
[1735352934296,4.70217208,3341.5,3341.1,7.37000715]
[1735352934501,1.64151,3341.4,3341.1,7.37000715]
[1735352935399,5.17874359,3341.4,3341.2,5.58557837]
[1735352935798,8.38654359,3341.4,3341.2,5.58557837]
[1735352936303,0.29971,3341.3,3341.2,5.58557837]
[1735352936603,8.38654359,3341.4,3341.1,7.37000715]
[1735352939303,8.38654359,3341.4,3341.2,5.58850367]
[1735352939800,7.20903359,3341.4,3341.3,0.29971]
[1735352940102,6.74503359,3341.4,3341.3,0.75271]
[1735352940502,3.2078,3341.4,3341.3,0.75271]
[1735352941602,6.74481919,3341.4,3341.3,0.75271]
[1735352943307,3.2078,3341.4,3341.3,6.33898844]
[1735352944807,3.2078,3341.4,3341.3,7.41597651]
[1735352945907,3.2078,3341.4,3341.3,14.91785366]
[1735352949609,3.2078,3341.4,3341.3,19.91785366]
[1735352949610,2.54578546,3341.4,3341.3,19.91785366]
[1735352949909,2.16643709,3341.6,3341.5,0.2997]
[1735352950105,2.16643709,3341.6,3341.5,1.37668807]
[1735352950802,3.2078,3341.8,3341.7,0.29968]
[1735352951001,3.2078,3341.8,3341.7,1.48768]
[1735352952700,3.2078,3341.8,3341.7,1.93898]
[1735352953100,3.2078,3341.8,3341.6,7.05168264]
[1735352953304,2.28316807,3341.7,3341.6,7.05168264]
[1735352954610,2.28316807,3341.7,3341.0,3.2078]
[1735352954611,0.29971,3341.4,3341.1,0.29973]
[1735352954810,0.29971,3341.3,3341.1,0.4513]
[1735352955011,0.4555,3341.2,3341.1,0.4513]
[1735352955309,0.4555,3341.2,3341.1,0.75103]
[1735352955509,0.4555,3341.2,3341.1,1.52828807]
[1735352955705,0.4555,3341.2,3341.1,0.4513]
[1735352958412,0.4555,3341.2,3341.1,13.11508227]
[1735352958918,1.20672,3341.2,3341.1,13.11508227]
[1735352959416,1.20672,3341.2,3341.1,0.4513]
[1735352963921,0.907,3341.2,3341.1,0.4513]
[1735352964419,0.907,3341.2,3341.0,7.05168264]
[1735352965122,0.907,3341.2,3341.0,7.35142264]
[1735352967829,0.907,3341.2,3341.0,0.29974]
[1735352968019,1.20672,3341.2,3340.9,7.78103264]
[1735352968219,0.907,3341.2,3340.9,7.78103264]
[1735352968422,0.907,3341.2,3341.0,0.29974]
[1735352968730,0.907,3341.2,3340.9,7.48128264]
[1735352969036,0.907,3341.2,3341.0,0.29974]
[1735352969236,0.907,3341.2,3341.0,5.9123635]
[1735352969626,0.907,3341.2,3341.0,5.6126235]
[1735352969834,0.29973,3341.1,3341.0,5.6126235]
[1735352970729,2.57500043,3341.1,3341.0,5.6126235]
[1735352971030,0.29978,3340.6,3340.5,7.05168264]
[1735352972132,0.29978,3340.6,3340.4,0.4305]
[1735352972332,0.9,3340.5,3340.4,0.4305]
[1735352973532,0.9,3340.5,3340.4,13.39359391]
[1735352975739,0.9,3340.5,3340.4,14.47110366]
[1735352975932,0.9,3340.5,3340.4,7.41942102]
[1735352976339,7.92362228,3341.2,3340.4,7.11963102]
[1735352976534,0.8889,3341.1,3340.4,6.79161127]
[1735352976740,0.8889,3341.1,3340.8,1.37725975]
[1735352976944,0.8889,3341.1,3340.9,0.4609]
[1735352977436,0.8889,3341.1,3340.9,0.76065]
[1735352984044,0.8889,3341.1,3340.9,0.4609]
[1735352984246,1.18863,3341.1,3340.9,0.4609]
[1735352984637,0.8889,3341.1,3340.9,0.4609]
[1735352984836,0.8889,3341.1,3340.9,0.76064]
[1735352989251,1.18863,3341.1,3340.9,0.4609]
[1735352994049,1.96640975,3341.1,3340.6,4.69750996]
[1735352994248,0.29977,3340.7,3340.6,4.69750996]
[1735352995456,0.29978,3340.6,3340.4,8.98281971]
[1735352995661,0.4689,3340.6,3340.4,9.28260971]
[1735352998253,0.4689,3340.6,3340.5,4.69750996]
[1735352999557,0.76868,3340.6,3340.5,4.69750996]
[1735352999952,1.20268,3340.6,3340.5,4.69750996]
[1735353000363,4.41048,3340.6,3340.5,4.69750996]
[1735353000761,4.1107,3340.6,3340.2,4.69750996]
[1735353000953,0.2998,3340.4,3340.2,4.99731996]
[1735353001155,4.1107,3340.6,3340.2,4.99731996]
[1735353001460,4.1107,3340.6,3340.4,0.29979]
[1735353001461,4.41048,3340.6,3340.4,0.29979]
[1735353001759,4.1107,3340.6,3340.5,0.29979]
[1735353002357,4.41048,3340.6,3340.4,0.29979]
[1735353003162,4.41048,3340.6,3340.2,1.07750975]
[1735353003660,0.9029,3340.6,3340.5,0.29979]
[1735353004560,1.20268,3340.6,3340.5,0.29979]
[1735353005353,1.20268,3340.6,3340.2,1.07750975]
[1735353005559,1.20268,3340.6,3340.4,0.29979]
[1735353007063,0.9029,3340.6,3340.5,0.29979]
[1735353007664,0.9029,3340.6,3340.4,0.29979]
[1735353008264,0.9029,3340.6,3340.5,0.432]
[1735353008456,0.9029,3340.6,3340.5,0.73179]
[1735353010164,0.4689,3340.6,3340.5,0.73179]
[1735353011467,0.76868,3340.6,3340.5,0.432]
[1735353016970,0.29979,3340.5,3340.4,4.69750996]
[1735353017268,1.37729975,3340.5,3340.4,4.69750996]
[1735353018770,0.29983,3340.0,3339.9,5.13510996]
[1735353018974,0.29983,3340.0,3339.9,5.43494996]
[1735353019359,0.29983,3340.0,3339.9,5.13510996]
[1735353019566,1.07750975,3340.3,3339.9,5.13510996]
[1735353020070,0.29983,3340.1,3339.9,5.13510996]
[1735353020270,0.4364,3340.0,3339.9,0.4376]
[1735353020471,1.17573,3340.0,3339.9,0.4376]
[1735353022067,0.29985,3339.8,3339.7,4.78488149]
[1735353022470,0.29985,3339.8,3339.7,4.69750996]
[1735353023078,1.50500975,3339.9,3339.5,4.69750996]
[1735353023278,0.29986,3339.7,3339.5,4.69750996]
[1735353023670,0.4679,3339.6,3339.5,4.69750996]
[1735353024381,0.4679,3339.6,3339.4,6.07489971]
[1735353025272,0.4679,3339.6,3339.4,5.77501971]
[1735353025475,0.4679,3339.6,3339.5,0.29988]
[1735353027078,0.4679,3339.6,3339.4,1.37738975]
[1735353027279,0.4651,3339.5,3339.4,1.37738975]
[1735353029580,0.4679,3339.6,3339.4,1.07750975]
[1735353029783,0.4493,3339.8,3339.5,0.29988]
[1735353029983,1.17955,3339.8,3339.5,1.37738975]
[1735353030185,0.8797,3339.8,3339.3,9.88031971]
[1735353030485,0.29986,3339.7,3339.3,10.18020971]
[1735353030787,0.29986,3339.7,3339.4,0.29988]
[1735353031185,1.17955,3339.8,3339.4,0.29988]
[1735353031983,0.8797,3339.8,3339.4,0.29988]
[1735353032189,0.8797,3339.8,3339.3,5.18280975]
[1735353032391,0.8797,3339.8,3339.6,0.29986]
[1735353032797,0.8797,3339.8,3339.7,0.466]
[1735353034592,1.17955,3339.8,3339.7,0.466]
[1735353035492,1.17955,3339.8,3339.7,0.76586]
[1735353035493,0.8797,3339.8,3339.7,0.76586]
[1735353035790,1.17955,3339.8,3339.7,0.466]
[1735353037184,0.4275,3339.9,3339.7,0.466]
[1735353037185,3.2078,3340.0,3339.7,1.54350975]
[1735353037387,3.2078,3340.0,3339.9,1.37734975]
[1735353039694,1.16082,3340.2,3340.0,0.29982]
[1735353040194,1.16082,3340.2,3340.1,0.4441]
[1735353042796,4.6956679,3340.2,3340.1,0.4441]
[1735353046789,3.5348479,3340.2,3340.1,1.82142975]
[1735353048404,0.29979,3340.6,3340.1,6.21911971]
[1735353048599,0.29979,3340.6,3340.3,1.07750975]
[1735353048799,0.29979,3340.6,3340.4,0.29979]
[1735353049000,0.29979,3340.6,3340.4,0.75529]
[1735353049299,0.29979,3340.6,3340.5,0.4603]
[1735353050603,0.29977,3340.7,3340.5,0.76009]
[1735353051996,0.29978,3340.6,3340.5,0.76009]
[1735353052197,0.29978,3340.6,3340.5,0.4603]
[1735353055703,0.29978,3340.6,3340.5,0.76009]
[1735353056501,0.29978,3340.6,3340.5,0.4603]
[1735353057297,4.6897079,3340.8,3340.6,0.29977]
[1735353057502,0.29977,3340.7,3340.6,0.29977]
[1735353057704,0.29977,3340.7,3340.5,0.76008]
[1735353057997,0.29978,3340.6,3340.5,0.76008]
[1735353058202,0.29978,3340.6,3340.5,0.4603]
[1735353060011,7.0423879,3341.0,3340.7,0.29976]
[1735353060209,7.0423879,3341.0,3340.7,1.37726975]
[1735353061508,3.8345879,3341.0,3340.7,1.37726975]
[1735353061709,0.29974,3341.0,3340.7,1.37726975]
[1735353062113,0.29974,3341.1,3340.9,1.07750975]
[1735353062305,3.5348479,3341.2,3341.1,0.29973]
[1735353062503,3.5348479,3341.2,3341.1,1.37723975]
[1735353062700,1.4134479,3341.2,3341.1,6.84163975]
[1735353062998,4.71307843,3341.4,3341.3,0.29971]
[1735353063202,7.92087843,3341.8,3341.7,0.29968]
[1735353063904,7.92087843,3341.8,3341.6,1.187]
[1735353064207,0.75638,3341.7,3341.6,1.187]
[1735353064404,1.18478,3341.7,3341.6,1.187]
[1735353065404,0.8851,3341.7,3341.6,1.187]
[1735353065607,0.8851,3341.7,3341.6,1.48669]
[1735353067007,0.8851,3341.7,3341.6,1.187]
[1735353067212,1.18478,3341.7,3341.6,1.187]
[1735353071714,0.8851,3341.7,3341.6,1.187]
[1735353073312,1.3255,3341.7,3341.6,1.187]
[1735353074008,1.3255,3341.7,3341.6,1.48669]
[1735353075815,0.8851,3341.7,3341.6,1.48669]
[1735353076712,0.8851,3341.7,3341.6,1.187]
[1735353077212,0.8851,3341.7,3341.6,1.48669]
[1735353077917,0.8851,3341.7,3341.6,1.187]
[1735353078107,1.18478,3341.7,3341.6,1.187]
[1735353079120,0.8851,3341.7,3341.6,1.48669]
[1735353080308,0.8851,3341.7,3341.6,1.187]
[1735353080512,0.29972,3341.3,3340.8,0.29976]
[1735353080814,0.29976,3340.9,3340.7,7.90530996]
[1735353081014,1.3217,3341.2,3340.7,4.69750996]
[1735353081015,0.29976,3340.8,3340.7,4.69750996]
[1735353081218,4.5295,3341.2,3340.7,4.69750996]
[1735353081427,0.29976,3340.9,3340.7,4.69750996]
[1735353081925,0.29976,3340.9,3340.5,0.29978]
[1735353082422,0.29976,3340.9,3340.6,0.29978]
[1735353083015,0.29975,3341.0,3340.3,4.3938]
[1735353083812,0.29975,3341.0,3340.6,0.29977]
[1735353085119,0.29976,3340.8,3340.4,0.29979]
[1735353085416,0.29976,3340.8,3340.5,0.29978]
[1735353086314,0.4638,3340.7,3340.5,0.29978]
[1735353086514,0.4301,3340.6,3340.5,0.29978]
[1735353087023,0.4301,3340.6,3340.3,4.3938]
[1735353087321,0.4551,3340.5,3340.3,3.5076]
[1735353089719,0.4551,3340.5,3340.4,0.29979]
[1735353091021,0.4551,3340.5,3340.3,3.5076]
[1735353091323,0.4551,3340.5,3340.4,0.29979]
[1735353091512,0.4551,3340.5,3340.3,3.2078]
[1735353091925,0.4551,3340.5,3340.3,3.5076]
[1735353093518,0.4551,3340.5,3340.3,3.2078]
[1735353093718,0.4551,3340.5,3340.4,0.29979]
[1735353095824,0.4551,3340.5,3340.3,3.2078]
[1735353096024,0.4551,3340.5,3340.3,3.5076]
[1735353098231,0.4551,3340.5,3340.3,3.2078]
[1735353098430,0.4551,3340.5,3340.4,0.29979]
[1735353099431,0.4551,3340.5,3340.3,3.2078]
[1735353099636,0.4551,3340.5,3340.3,3.5076]
[1735353100334,0.4551,3340.5,3340.3,0.2998]
[1735353100630,0.4551,3340.5,3340.4,0.29979]
[1735353101032,0.4551,3340.5,3340.2,3.2078]
[1735353101330,0.29979,3340.4,3340.2,3.2078]
[1735353102233,0.2998,3340.3,3340.2,3.2078]
[1735353103831,0.2998,3340.4,3340.2,3.2078]
[1735353104130,0.4551,3340.5,3340.2,3.2078]
[1735353104333,0.2998,3340.3,3340.2,3.2078]
[1735353104532,0.2998,3340.4,3340.2,3.2078]
[1735353105038,0.75489,3340.5,3340.2,3.50761]
[1735353105735,0.4551,3340.5,3340.4,0.29979]
[1735353106129,0.4301,3340.6,3340.5,0.29979]
[1735353106937,0.4301,3340.6,3340.4,0.29979]
[1735353107134,0.4301,3340.6,3340.2,5.48220493]
[1735353107438,0.4301,3340.6,3340.4,0.29979]
[1735353108731,0.4301,3340.6,3340.5,0.29979]
[1735353111040,0.4608,3340.8,3340.7,0.29977]
[1735353112049,0.4608,3340.8,3340.6,0.29977]
[1735353112350,0.4369,3340.7,3340.6,0.29977]
[1735353112554,0.8969,3340.7,3340.6,0.29977]
[1735353117758,0.29978,3340.6,3340.3,3.5076]
[1735353118151,1.19667,3340.7,3340.4,0.29979]
[1735353120350,0.29978,3340.6,3340.3,3.2078]
[1735353121152,0.8969,3340.7,3340.3,3.2078]
[1735353121356,0.29981,3340.2,3340.1,4.69750996]
[1735353121852,4.1047,3340.7,3340.1,4.69750996]
[1735353122258,0.29981,3340.3,3340.1,4.69750996]
[1735353122460,1.3281,3340.2,3340.1,4.69750996]
[1735353123764,1.3281,3340.2,3339.9,2.57423493]
[1735353124864,1.3281,3340.2,3340.0,0.29983]
[1735353125163,1.3281,3340.2,3340.0,4.99733996]
[1735353126058,0.4444,3340.2,3340.1,0.29982]
[1735353126257,0.4444,3340.2,3340.1,4.99732996]
[1735353127867,0.9009,3340.4,3340.3,0.2998]
[1735353128057,0.4662,3340.5,3340.2,2.27440493]
[1735353128364,3.53242959,3340.6,3340.5,0.29979]
[1735353128553,3.53242959,3340.6,3340.5,2.57419493]
[1735353129862,3.53242959,3341.0,3340.9,0.29975]
[1735353130058,3.53242959,3341.0,3340.9,2.57415493]
[1735353131464,3.2078,3341.4,3341.3,0.29971]
[1735353132267,0.8655,3341.5,3341.2,1.186]
[1735353132768,0.8655,3341.5,3341.2,1.48571]
[1735353133068,0.8655,3341.5,3341.2,6.19387112]
[1735353136669,0.8655,3341.5,3341.2,1.48571]
[1735353138267,0.8655,3341.5,3341.2,1.186]
[1735353138467,0.8655,3341.5,3341.3,0.29971]
[1735353140768,0.8655,3341.5,3341.2,1.48572]
[1735353143470,0.8655,3341.5,3341.3,0.29971]
[1735353149276,0.8655,3341.5,3341.2,1.186]
[1735353149477,0.8655,3341.5,3341.2,1.48572]
[1735353150978,0.8655,3341.5,3341.3,0.29971]
[1735353151572,0.8655,3341.5,3341.2,1.186]
[1735353151775,0.4254,3341.5,3341.4,1.37643781]
[1735353152484,0.4476,3341.7,3341.6,0.29969]
[1735353152672,0.4476,3341.7,3341.6,1.37641781]
[1735353153880,0.4476,3341.7,3341.6,0.29969]
[1735353165485,0.4476,3341.7,3341.5,2.27451353]
[1735353165686,0.4476,3341.7,3341.5,2.57420353]
[1735353166277,0.4515,3341.6,3341.5,2.57420353]
[1735353167384,0.4515,3341.6,3341.3,4.70816112]
[1735353167582,0.75119,3341.6,3341.3,4.70816112]
[1735353167783,0.4515,3341.6,3341.5,0.2997]
[1735353167985,0.4476,3341.7,3341.6,0.29969]
[1735353170890,0.4476,3341.7,3341.5,2.27451353]
[1735353170891,3.2078,3341.8,3341.5,6.98267465]
[1735353171090,3.2078,3341.8,3341.7,0.29968]
[1735353171995,3.2078,3341.8,3341.7,5.00784112]
[1735353172495,3.6433,3341.8,3341.7,5.00784112]
[1735353172993,4.084,3341.8,3341.7,5.00784112]
[1735353173194,3.2078,3341.8,3341.7,5.00784112]
[1735353173895,3.2078,3341.8,3341.7,7.160331]
[1735353174097,3.2078,3341.8,3341.7,6.08408606]
[1735353174784,3.2078,3341.8,3341.7,7.10912551]
[1735353175301,0.50946722,3341.8,3341.7,7.10912551]
[1735353175598,0.50946722,3341.8,3341.7,16.43108758]
[1735353176792,0.50946722,3341.8,3341.7,16.13140758]
[1735353177095,0.80913722,3341.8,3341.7,5.73320057]
[1735353177294,0.80913722,3341.8,3341.7,1.49060057]
[1735353178295,0.2997,3341.5,3341.4,1.07624494]
[1735353179099,0.29971,3341.3,3341.2,4.71420355]
[1735353179403,0.29971,3341.3,3341.2,5.79044849]
[1735353179599,0.29971,3341.3,3341.2,1.07624494]
[1735353179902,0.29971,3341.3,3341.1,8.174192]
[1735353180296,0.2997,3341.5,3341.1,8.174192]
[1735353180496,0.7519,3341.5,3341.1,8.473922]
[1735353180898,3.53558322,3341.3,3341.1,8.473922]
[1735353181703,3.53558322,3341.3,3341.2,0.29972]
[1735353182406,3.53558322,3341.5,3341.4,0.29971]
[1735353182603,3.48131322,3341.5,3341.4,2.57469845]
[1735353183804,0.4642,3341.7,3341.4,13.40149769]
[1735353184104,0.4642,3341.7,3341.6,0.29969]
[1735353185001,0.4642,3341.7,3341.6,7.37057952]
[1735353187508,7.92187056,3342.1,3342.0,0.29965]
[1735353187701,7.92187056,3342.1,3342.0,3.45998845]
[1735353188401,3.2078,3342.1,3342.0,8.17424965]
[1735353188802,3.50744,3342.1,3342.0,8.17424965]
[1735353189810,3.50744,3342.1,3342.0,8.61864965]
[1735353191302,3.50744,3342.1,3342.0,3.90438845]
[1735353193308,3.50744,3342.1,3342.0,3.45998845]
[1735353194607,3.2078,3342.1,3341.8,4.7142612]
[1735353194804,3.2078,3342.1,3341.8,5.8992612]
[1735353194805,0.29966,3341.9,3341.8,5.8992612]
[1735353195414,0.29966,3341.9,3341.8,4.0070612]
[1735353195710,0.29966,3341.9,3341.5,4.71426764]
[1735353195711,9.71407056,3341.9,3341.5,4.71426764]
[1735353195906,3.50749,3341.6,3341.5,4.07161764]
[1735353196409,8.50749,3341.6,3341.5,4.07161764]
[1735353197305,8.50749,3341.6,3341.0,11.66291853]
[1735353197306,0.29977,3340.8,3340.6,2.37006005]
[1735353197510,0.29977,3340.8,3340.6,2.66983005]
[1735353198213,0.29977,3340.8,3340.6,2.37006005]
[1735353200716,2.35394321,3341.0,3340.6,2.37006005]
[1735353200911,0.29977,3340.8,3340.6,2.37006005]
[1735353203113,2.35394321,3341.1,3340.6,2.37006005]
[1735353203318,0.29977,3340.7,3340.6,2.37006005]
[1735353204313,0.29977,3340.7,3340.6,2.27498845]
[1735353208621,5.56174321,3341.2,3340.6,2.27498845]
[1735353208810,2.65368321,3341.1,3340.9,2.27498845]
[1735353209121,2.35394321,3341.1,3341.0,0.4649]
[1735353210021,0.29973,3341.2,3341.0,0.4649]
[1735353210322,2.35394321,3341.4,3341.0,0.4649]
[1735353210719,0.29973,3341.1,3341.0,0.4649]
[1735353211924,0.29973,3341.2,3341.0,0.76464]
[1735353212625,0.29972,3341.3,3341.1,0.29973]
[1735353212827,2.35394321,3341.5,3341.3,2.27498845]
[1735353213121,2.35394321,3341.5,3341.4,0.4538]
[1735353214725,0.2997,3341.5,3341.4,0.4538]
[1735353215628,3.2078,3341.7,3341.4,0.4538]
[1735353215920,3.50748,3341.7,3341.4,0.4538]
[1735353217524,1.7932,3341.7,3341.6,2.27498845]
[1735353217725,2.35394321,3342.0,3341.9,0.29966]
[1735353218028,2.35394321,3342.0,3341.9,2.57464845]
[1735353219326,3.2078,3342.1,3341.9,2.57464845]
[1735353219628,3.2078,3342.1,3342.0,0.29965]
[1735353219830,2.35394321,3342.4,3342.0,0.29965]
[1735353220031,2.65356321,3342.4,3342.3,2.27498845]
[1735353220430,0.29962,3342.4,3342.3,2.27498845]
[1735353221527,3.2078,3342.5,3342.3,2.57460845]
[1735353221734,0.29959,3342.7,3342.3,5.78240845]
[1735353222026,2.35394321,3342.8,3342.6,2.27498845]
[1735353222231,2.35394321,3342.8,3342.7,4.1128]
[1735353223434,0.29958,3342.9,3342.7,4.1128]
[1735353223731,2.35394321,3343.4,3342.7,4.1128]
[1735353224031,0.29954,3343.2,3343.1,2.27498845]
[1735353225128,0.29954,3343.2,3343.1,5.48278845]
[1735353232339,0.29954,3343.2,3343.1,3.2078]
[1735353234831,0.29958,3342.8,3342.7,3.17998845]
[1735353235039,0.29958,3342.8,3342.7,6.38778845]
[1735353236532,0.29957,3343.0,3342.7,6.38778845]
[1735353237732,0.899,3343.5,3342.7,6.38778845]
[1735353237937,0.29956,3343.0,3342.9,2.27498845]